bitfinex-derivatives/quotes_ETHF0:USTF0_20250103
["timestamp","ask_amount","ask_price","bid_price","bid_amount"]
[1735896400940,44.0078,3445.9,3445.8,1.74649434]
[1735896401138,40.8,3445.9,3445.8,2.32894197]
[1735896401638,41.09047,3445.9,3445.8,1.9825855]
[1735896402027,41.09047,3445.9,3445.8,0.9704253]
[1735896404833,3.2078,3446.0,3445.9,0.29047]
[1735896405040,3.2078,3446.0,3445.9,1.88516505]
[1735896405235,3.2078,3446.0,3445.9,2.32901919]
[1735896405939,3.2078,3446.0,3445.9,13.64506043]
[1735896407735,3.2078,3446.0,3445.9,13.64504221]
[1735896409651,3.2078,3446.0,3445.9,13.64507636]
[1735896410243,3.2078,3446.0,3445.9,13.64507637]
[1735896411242,40.8,3446.2,3446.1,0.29045]
[1735896411435,40.8,3446.2,3446.1,1.98254447]
[1735896411743,44.0078,3446.2,3446.1,1.98254447]
[1735896412435,44.0078,3446.2,3446.1,6.51939622]
[1735896413339,44.0078,3446.2,3446.1,6.51939672]
[1735896415446,44.0078,3446.2,3446.1,1.98254497]
[1735896416040,44.0078,3446.2,3446.1,2.32911892]
[1735896416441,44.0078,3446.2,3446.1,2.32907353]
[1735896416946,44.0078,3446.2,3446.1,6.85115753]
[1735896418938,44.0078,3446.2,3446.1,6.85081443]
[1735896419543,44.0078,3446.2,3446.1,6.85077285]
[1735896419739,44.0078,3446.2,3446.1,13.64284059]
[1735896420133,3.2078,3446.2,3446.1,13.64284059]
[1735896420538,3.2078,3446.2,3446.1,14.76384059]
[1735896421150,2.27850404,3446.5,3446.1,14.47339059]
[1735896421443,2.27850404,3446.5,3446.4,1.3025902]
[1735896421648,43.07850404,3446.6,3446.4,2.03790332]
[1735896421841,43.07850404,3446.6,3446.5,0.87230898]
[1735896422043,43.07850404,3446.6,3446.5,1.31616312]
[1735896422749,40.8,3446.6,3446.5,5.83836186]
[1735896423544,40.8,3446.6,3446.5,5.49252069]
[1735896424045,41.09041,3446.6,3446.5,5.49252069]
[1735896424752,41.09041,3446.6,3446.5,5.49252782]
[1735896425150,41.09041,3446.6,3446.5,5.49252607]
[1735896425652,41.09041,3446.6,3446.5,0.97032733]
[1735896428146,41.09041,3446.6,3446.5,0.82506383]
[1735896429550,44.29821,3446.6,3446.5,0.82506383]
[1735896430058,44.29821,3446.6,3446.5,0.73427414]
[1735896431353,44.29821,3446.6,3446.5,0.825068]
[1735896431748,46.57671404,3446.6,3446.5,0.825068]
[1735896433050,44.29821,3446.6,3446.5,0.825068]
[1735896433450,44.29821,3446.6,3446.5,0.534648]
[1735896433748,44.29821,3446.6,3446.5,0.82506779]
[1735896433948,44.29821,3446.6,3446.5,0.53464779]
[1735896434151,44.29821,3446.6,3446.5,0.82506779]
[1735896434357,44.29821,3446.6,3446.5,0.82506801]
[1735896434555,44.29821,3446.6,3446.5,0.53464801]
[1735896434853,44.29821,3446.6,3446.5,0.82506801]
[1735896435552,46.57671404,3446.6,3446.5,0.82506801]
[1735896439863,46.57671404,3446.6,3446.5,0.82506777]
[1735896443357,46.57671404,3446.6,3446.5,0.82506816]
[1735896445759,46.57671404,3446.6,3446.5,0.82506939]
[1735896445960,47.58887424,3446.6,3446.5,0.82506939]
[1735896447964,47.58887424,3446.6,3446.5,0.53464939]
[1735896448171,47.58887424,3446.6,3446.5,0.44385414]
[1735896448468,47.29846424,3446.6,3446.3,4.8171418]
[1735896448668,1.3025902,3446.4,3446.3,4.8171518]
[1735896448871,1.3025902,3446.4,3446.3,5.26061593]
[1735896450468,6.30716605,3446.4,3446.3,0.73390413]
[1735896451470,6.30716605,3446.4,3446.3,0.44346413]
[1735896451673,6.30716605,3446.4,3446.3,0.73390413]
[1735896451865,6.30716605,3446.4,3446.3,0.44346413]
[1735896453367,0.29046,3446.0,3445.9,0.29047]
[1735896453563,4.5104202,3446.0,3445.9,0.38128231]
[1735896453764,4.5104202,3446.0,3445.9,0.82448169]
[1735896454164,4.5104202,3446.0,3445.9,0.73366938]
[1735896454765,4.94627626,3446.0,3445.9,0.73366938]
[1735896456068,4.94627626,3446.0,3445.9,0.29047]
[1735896456274,8.37167759,3446.0,3445.9,0.73349502]
[1735896456476,8.37167759,3446.0,3445.9,0.82430166]
[1735896457879,6.79373305,3446.0,3445.9,0.82430166]
[1735896458073,6.79373305,3446.0,3445.9,0.73349502]
[1735896458475,6.79373305,3446.0,3445.9,0.44302502]
[1735896459477,0.2905,3445.6,3445.5,4.5267118]
[1735896459689,4.5104602,3445.6,3445.5,4.61753018]
[1735896460188,45.3104602,3445.6,3445.5,4.5267118]
[1735896460986,0.29051,3445.5,3445.4,0.2905]
[1735896461190,0.29051,3445.5,3445.4,0.38131922]
[1735896461581,0.29051,3445.5,3445.4,0.38131947]
[1735896463480,0.29051,3445.5,3445.4,0.29051]
[1735896463688,0.2905,3445.5,3445.4,0.3813301]
[1735896464082,0.2905,3445.5,3445.4,0.29051]
[1735896464391,0.2905,3445.5,3445.4,0.38133002]
[1735896465090,0.2905,3445.5,3445.4,0.29051]
[1735896465291,0.2905,3445.5,3445.4,0.38132991]
[1735896466089,44.0078,3445.6,3445.5,0.2905]
[1735896466090,44.2983,3445.6,3445.5,0.2905]
[1735896467099,44.0078,3445.6,3445.5,1.3026602]
[1735896467791,44.2983,3445.6,3445.5,1.3026602]
[1735896468292,44.0078,3445.6,3445.5,1.39347485]
[1735896468486,44.2983,3445.6,3445.5,1.39347485]
[1735896470287,44.0078,3445.6,3445.5,1.39347485]
[1735896470886,44.0078,3445.6,3445.5,1.39347447]
[1735896471193,44.2983,3445.6,3445.5,1.39347447]
[1735896471396,44.0078,3445.6,3445.5,1.39347447]
[1735896472193,44.2983,3445.6,3445.5,1.39347447]
[1735896472792,44.2983,3445.6,3445.5,1.39347358]
[1735896473893,44.2983,3445.6,3445.5,0.38131338]
[1735896474103,45.3104602,3445.6,3445.5,0.38131338]
[1735896475195,44.2983,3445.6,3445.5,0.38131338]
[1735896476491,44.2983,3445.6,3445.5,0.38131429]
[1735896479503,44.2983,3445.6,3445.5,0.38131413]
[1735896481596,44.2983,3445.6,3445.5,0.38131536]
[1735896484404,44.2983,3445.6,3445.5,0.72766609]
[1735896484703,44.2983,3445.6,3445.5,0.72766525]
[1735896484902,44.2983,3445.6,3445.5,0.38131452]
[1735896485104,44.2983,3445.6,3445.5,0.72767744]
[1735896485401,44.2983,3445.6,3445.5,0.38131452]
[1735896485601,44.2983,3445.6,3445.5,0.72768664]
[1735896485900,44.2983,3445.6,3445.5,0.38131452]
[1735896486301,44.2983,3445.6,3445.5,0.72773527]
[1735896487003,44.2983,3445.6,3445.5,0.38131452]
[1735896487302,44.2983,3445.6,3445.5,0.72775839]
[1735896487695,44.2983,3445.6,3445.5,0.43726317]
[1735896487896,45.3104602,3445.6,3445.5,0.09081452]
[1735896488903,45.3104602,3445.6,3445.5,0.38131452]
[1735896489702,45.3104602,3445.6,3445.5,0.09081452]
[1735896491705,47.59377305,3445.6,3445.5,0.09081452]
[1735896493110,45.3104602,3445.6,3445.5,0.09081452]
[1735896493310,44.2983,3445.6,3445.5,0.09082092]
[1735896493496,44.2983,3445.6,3445.5,0.38132092]
[1735896493898,44.2983,3445.6,3445.5,0.72767953]
[1735896494407,44.0078,3445.6,3445.5,0.72767953]
[1735896494608,44.0078,3445.6,3445.5,5.25439133]
[1735896494905,44.2983,3445.6,3445.5,5.25439133]
[1735896495109,44.2983,3445.6,3445.5,4.90803272]
[1735896496703,44.2983,3445.6,3445.5,4.8172118]
[1735896496897,44.2983,3445.6,3445.5,4.90802947]
[1735896497304,44.2983,3445.6,3445.5,4.61752947]
[1735896497501,46.58281022,3445.6,3445.5,4.61752947]
[1735896498808,44.2983,3445.6,3445.5,4.61752947]
[1735896499410,44.2983,3445.6,3445.5,4.90802947]
[1735896499803,44.2983,3445.6,3445.5,4.90802921]
[1735896500610,44.2983,3445.6,3445.5,4.90802935]
[1735896501003,44.2983,3445.6,3445.5,4.61752935]
[1735896501206,44.2983,3445.6,3445.5,4.90802935]
[1735896501409,44.2983,3445.6,3445.5,4.61554196]
[1735896502318,44.2983,3445.6,3445.5,4.90604196]
[1735896502902,44.2983,3445.6,3445.5,4.90603781]
[1735896504016,44.2983,3445.6,3445.5,12.04373802]
[1735896505410,46.58507561,3445.6,3445.5,12.04373802]
[1735896505910,46.58507561,3445.6,3445.5,11.69737295]
[1735896506115,46.58507561,3445.6,3445.5,12.0437387]
[1735896506714,46.58507561,3445.6,3445.5,11.69737295]
[1735896507213,46.58507561,3445.6,3445.5,12.04374483]
[1735896507715,46.58507561,3445.6,3445.5,11.69737295]
[1735896507909,46.58507561,3445.6,3445.5,12.04374633]
[1735896508116,46.58507561,3445.6,3445.5,11.69737295]
[1735896509503,44.2983,3445.6,3445.5,11.69737295]
[1735896509707,44.2983,3445.6,3445.5,11.69737398]
[1735896512113,44.2983,3445.6,3445.5,11.40687394]
[1735896512815,41.0905,3445.6,3445.5,11.40687394]
[1735896513314,41.0905,3445.6,3445.5,11.69737394]
[1735896513508,41.0905,3445.6,3445.5,11.40687394]
[1735896515217,41.0905,3445.6,3445.5,11.69737406]
[1735896515409,41.0905,3445.6,3445.5,12.04376621]
[1735896516016,41.0905,3445.6,3445.5,11.75326621]
[1735896516218,41.0905,3445.6,3445.5,11.40687406]
[1735896516515,41.0905,3445.6,3445.5,11.406874]
[1735896518415,41.0905,3445.6,3445.5,11.40687434]
[1735896520416,41.0905,3445.6,3445.5,11.75329903]
[1735896520716,41.0905,3445.6,3445.5,11.75329814]
[1735896521420,41.0905,3445.6,3445.5,11.75333169]
[1735896521920,41.0905,3445.6,3445.5,11.40687434]
[1735896524119,44.95182835,3445.6,3445.5,4.61553974]
[1735896524921,44.95182835,3445.6,3445.5,4.90603974]
[1735896525117,44.95182835,3445.6,3445.5,5.25254477]
[1735896525314,44.95182835,3445.6,3445.5,6.26470497]
[1735896525515,44.51590133,3445.6,3445.5,13.05603957]
[1735896526615,41.0905,3445.6,3445.5,13.05603957]
[1735896527825,40.8,3445.6,3445.5,13.05603957]
[1735896528016,40.8,3445.6,3445.5,13.05599401]
[1735896529616,40.8,3445.6,3445.5,15.32074973]
[1735896530017,41.0905,3445.6,3445.5,15.32074973]
[1735896530221,5.78511298,3445.7,3445.6,0.2905]
[1735896530422,5.78511298,3445.7,3445.6,0.7277748]
[1735896530623,46.58511298,3445.7,3445.6,0.7277748]
[1735896531424,46.58511298,3445.7,3445.6,5.25249921]
[1735896531826,46.29462298,3445.7,3445.6,5.25249921]
[1735896532127,46.58511298,3445.7,3445.6,5.25249921]
[1735896533126,44.29829,3445.7,3445.6,23.35775499]
[1735896533626,44.29829,3445.7,3445.6,23.35757747]
[1735896533627,3.49829,3445.7,3445.6,23.35757747]
[1735896533926,0.29049,3445.7,3445.6,23.35757747]
[1735896534126,0.29049,3445.7,3445.6,14.30841201]
[1735896535026,40.8,3445.8,3445.6,14.30841201]
[1735896535027,41.09049,3445.8,3445.7,0.29049]
[1735896535224,41.09049,3445.8,3445.7,1.73974748]
[1735896536228,40.8,3445.8,3445.7,2.85274748]
[1735896536424,2.28682298,3445.9,3445.8,0.29048]
[1735896536627,2.28682298,3445.9,3445.8,0.72741843]
[1735896536925,44.0078,3446.0,3445.9,0.29047]
[1735896537115,40.8,3446.0,3445.9,1.39343093]
[1735896537427,2.28682298,3446.1,3446.0,0.29046]
[1735896537730,2.28682298,3446.1,3446.0,0.72739843]
[1735896538816,0.29044,3446.3,3446.2,0.29045]
[1735896539023,0.29044,3446.3,3446.2,1.39340652]
[1735896539619,0.29044,3446.3,3446.2,1.39340641]
[1735896540429,0.29044,3446.3,3446.2,5.92445337]
[1735896540726,0.29044,3446.3,3446.2,4.91229317]
[1735896541323,0.29044,3446.3,3446.2,4.53104696]
[1735896541525,43.37726298,3446.3,3446.2,0.29045]
[1735896542838,43.37726298,3446.3,3446.0,5.54320716]
[1735896542839,0.29045,3446.1,3446.0,4.82150696]
[1735896543135,0.29045,3446.1,3446.0,4.912311]
[1735896543432,41.09045,3446.1,3446.0,4.912311]
[1735896544226,41.09045,3446.1,3446.0,0.38126404]
[1735896545121,40.8,3446.1,3446.0,0.38126404]
[1735896546834,40.8,3446.1,3446.0,4.912311]
[1735896547333,40.8,3446.1,3446.0,4.9123057]
[1735896547830,40.8,3446.1,3446.0,4.82150696]
[1735896548038,40.8,3446.1,3446.0,4.91230632]
[1735896549226,0.29045,3446.2,3446.0,4.62184632]
[1735896549432,0.29045,3446.2,3446.1,1.39340956]
[1735896549833,41.09045,3446.2,3446.1,1.39340956]
[1735896550332,42.1026102,3446.2,3446.1,0.38124936]
[1735896550731,41.09045,3446.2,3446.1,4.91229632]
[1735896550930,41.09045,3446.2,3446.1,4.91229691]
[1735896552134,41.09045,3446.2,3446.1,0.38124995]
[1735896553438,41.09045,3446.2,3446.1,4.91229691]
[1735896553936,41.09045,3446.2,3446.1,5.83365716]
[1735896554135,41.09045,3446.2,3446.1,5.92445566]
[1735896554333,41.09045,3446.2,3446.1,4.91229546]
[1735896554535,41.09045,3446.2,3446.1,4.9122959]
[1735896554836,41.09045,3446.2,3446.1,0.38124894]
[1735896556535,41.09045,3446.2,3446.1,0.38124939]
[1735896557138,41.09045,3446.2,3446.1,0.38124944]
[1735896557539,40.8,3446.2,3446.1,0.38124944]
[1735896558639,40.8,3446.2,3446.1,1.39340964]
[1735896559339,40.8,3446.2,3446.1,1.73950838]
[1735896559535,5.78505298,3446.5,3446.4,0.29043]
[1735896559739,5.78505298,3446.5,3446.4,0.38122944]
[1735896559940,44.29823,3446.5,3446.4,0.38122944]
[1735896560132,3.49823,3446.5,3446.4,0.38122428]
[1735896563141,3.49823,3446.5,3446.4,0.38122545]
[1735896563844,3.49823,3446.5,3446.4,0.38122625]
[1735896564937,3.49822,3446.5,3446.4,0.38122625]
[1735896565344,3.2078,3446.5,3446.4,0.38122625]
[1735896565546,3.49822,3446.5,3446.4,0.38122625]
[1735896565846,3.49822,3446.5,3446.4,0.29043]
[1735896566143,3.49822,3446.5,3446.4,0.3812243]
[1735896566340,3.49822,3446.5,3446.4,0.38122393]
[1735896566841,0.29042,3446.5,3446.4,0.38122393]
[1735896567847,41.09042,3446.5,3446.4,0.38122393]
[1735896572343,41.09042,3446.5,3446.4,0.38122278]
[1735896572946,41.09042,3446.5,3446.4,0.38122234]
[1735896574645,41.09042,3446.5,3446.4,4.9122693]
[1735896574848,41.09042,3446.5,3446.4,4.9122686]
[1735896575440,41.09042,3446.5,3446.4,4.91226895]
[1735896576745,41.09042,3446.5,3446.4,4.91226908]
[1735896578845,43.37724298,3446.5,3446.4,4.91226908]
[1735896579945,43.37724298,3446.5,3446.4,5.25894662]
[1735896580238,43.37724298,3446.5,3446.4,4.91226908]
[1735896581752,43.37724298,3446.5,3446.4,5.25517694]
[1735896582146,43.37724298,3446.5,3446.4,5.25517604]
[1735896582447,43.37724298,3446.5,3446.4,4.90847211]
[1735896584053,43.37724298,3446.5,3446.4,4.90847459]
[1735896584850,43.37724298,3446.5,3446.4,4.90847362]
[1735896585651,43.37724298,3446.5,3446.4,5.25525055]
[1735896585955,43.37724298,3446.5,3446.4,4.90847362]
[1735896586743,43.37724298,3446.5,3446.4,11.70504406]
[1735896587845,43.37724298,3446.5,3446.4,4.90847341]
[1735896590751,41.09042,3446.5,3446.4,11.70504385]
[1735896590955,41.09042,3446.5,3446.4,11.70504475]
[1735896591454,41.09042,3446.5,3446.4,11.70504429]
[1735896593153,41.09042,3446.5,3446.4,4.90847385]
[1735896593353,41.09042,3446.5,3446.4,4.90847398]
[1735896594050,41.09042,3446.5,3446.4,5.25537473]
[1735896594754,41.09042,3446.5,3446.4,12.05194517]
[1735896596957,41.09042,3446.5,3446.4,11.96115205]
[1735896597157,41.09042,3446.5,3446.4,11.3238216]
[1735896597354,47.1025802,3446.5,3446.4,11.3238216]
[1735896597559,47.1025802,3446.5,3446.4,9.64437736]
[1735896597762,46.09042,3446.5,3446.4,9.64437736]
[1735896598355,46.32746054,3446.5,3446.4,9.64437736]
[1735896598663,57.26540972,3446.5,3445.6,4.54676888]
[1735896598958,4.5104502,3445.7,3445.6,4.54676888]
[1735896599160,4.5104502,3445.7,3445.6,4.63758716]
[1735896599557,45.3104502,3445.7,3445.6,4.63758716]
[1735896599956,45.3104502,3445.7,3445.6,4.54676888]
[1735896600154,45.3104502,3445.7,3445.6,0.09081782]
[1735896600767,45.3104502,3445.7,3445.6,0.38131783]
[1735896601464,47.59504129,3445.7,3445.6,0.38131783]
[1735896601855,46.58288109,3445.7,3445.6,0.38131783]
[1735896602056,46.58288109,3445.7,3445.6,0.09081783]
[1735896602561,46.29239109,3445.7,3445.5,5.55892908]
[1735896602860,46.58288109,3445.7,3445.6,0.09081621]
[1735896603662,0.2905,3445.6,3445.5,5.84942908]
[1735896603862,0.2905,3445.6,3445.5,4.63758556]
[1735896604155,0.2905,3445.6,3445.5,4.54676888]
[1735896604356,45.0199602,3445.7,3445.4,4.54676888]
[1735896604552,1.0121602,3445.5,3445.4,4.54676888]
[1735896604750,1.3026602,3445.5,3445.4,4.54676888]
[1735896606059,0.29056,3444.8,3444.7,4.54676888]
[1735896606261,3.49836,3444.8,3444.7,4.54676888]
[1735896606951,44.29836,3444.8,3444.7,4.54676888]
[1735896607357,44.29836,3444.8,3444.1,11.3201129]
[1735896607358,0.72644,3444.7,3444.2,4.83737888]
[1735896607553,0.29061,3444.3,3444.2,4.54676888]
[1735896608964,0.29061,3444.3,3444.2,4.83737888]
[1735896609760,3.2078,3444.4,3444.2,4.54676888]
[1735896609968,3.2078,3444.4,3444.3,1.3027702]
[1735896610268,3.29219449,3445.0,3444.6,0.29058]
[1735896610269,0.29058,3444.7,3444.6,0.29058]
[1735896610562,0.29058,3444.7,3444.6,1.3027402]
[1735896610955,0.29058,3444.7,3444.6,1.0121602]
[1735896611461,0.29058,3444.7,3444.1,1.111]
[1735896611462,0.72644,3444.7,3444.3,1.0121602]
[1735896611663,0.29062,3444.3,3444.2,0.29061]
[1735896611863,0.29062,3444.3,3444.2,1.3027702]
[1735896612967,0.29062,3444.2,3444.1,0.29061]
[1735896613169,0.29062,3444.2,3444.1,1.3027702]
[1735896614869,3.2078,3444.6,3444.1,1.0121602]
[1735896615068,0.29059,3444.5,3444.4,1.0121602]
[1735896615468,0.29059,3444.5,3444.4,1.3027602]
[1735896615867,0.29059,3444.5,3444.4,1.0121602]
[1735896616265,0.29059,3444.5,3444.4,1.3027602]
[1735896616766,0.29059,3444.5,3444.4,1.0121602]
[1735896617174,0.29059,3444.5,3444.4,1.3027602]
[1735896618168,0.29059,3444.5,3444.4,1.0121602]
[1735896619774,0.29059,3444.5,3444.4,1.3027602]
[1735896624075,3.49839,3444.5,3444.4,1.3027602]
[1735896624475,3.49839,3444.5,3444.4,1.0121602]
[1735896625475,3.49839,3444.5,3444.4,1.3027602]
[1735896626072,3.49839,3444.5,3444.4,1.0121602]
[1735896626982,3.49839,3444.5,3444.4,1.3027602]
[1735896627874,0.29062,3444.3,3444.2,0.29061]
[1735896628179,0.29062,3444.3,3444.2,1.3936177]
[1735896628376,41.09062,3444.3,3444.2,1.3936177]
[1735896629373,41.09062,3444.3,3444.2,1.39361828]
[1735896629568,41.09062,3444.3,3444.2,1.10300828]
[1735896629774,41.09062,3444.3,3444.2,1.39361828]
[1735896632381,41.09062,3444.3,3444.2,1.39361862]
[1735896633579,41.09062,3444.3,3444.2,1.74110161]
[1735896634282,3.2078,3444.5,3444.2,1.45049161]
[1735896634477,0.2906,3444.4,3444.3,0.72893141]
[1735896634670,0.2906,3444.4,3444.3,1.74109161]
[1735896636985,3.2078,3444.5,3444.4,0.2906]
[1735896637180,3.2078,3444.5,3444.4,0.72899815]
[1735896638578,3.2078,3444.5,3444.4,0.72881238]
[1735896639182,3.2078,3444.5,3444.4,0.72873829]
[1735896641088,3.2078,3444.5,3444.4,0.72867047]
[1735896641484,3.2078,3444.5,3444.4,0.72866986]
[1735896642984,3.2078,3444.5,3444.4,5.27543874]
[1735896643791,0.29058,3444.7,3444.4,5.27543874]
[1735896643988,0.29058,3444.7,3444.6,0.29058]
[1735896644187,0.29057,3444.7,3444.6,0.09083908]
[1735896644491,0.29057,3444.7,3444.6,0.09084702]
[1735896644492,40.8,3444.7,3444.6,0.09084702]
[1735896644793,41.09057,3444.7,3444.6,0.09084702]
[1735896646390,41.09057,3444.7,3444.2,5.55658742]
[1735896646391,0.29061,3444.4,3444.3,0.29059]
[1735896646586,0.29061,3444.4,3444.3,0.38143771]
[1735896646986,0.29061,3444.4,3444.3,0.09084771]
[1735896646987,4.5105702,3444.4,3444.3,0.09084771]
[1735896647294,0.29061,3444.2,3444.1,4.54442722]
[1735896647494,1.3027702,3444.2,3444.1,4.63528577]
[1735896648391,1.3027702,3444.2,3444.1,4.63528607]
[1735896648988,1.3027702,3444.2,3444.1,0.09085885]
[1735896649190,1.3027702,3444.2,3444.1,0.38147885]
[1735896649695,1.3027702,3444.2,3444.1,0.09085885]
[1735896649997,1.3027702,3444.2,3444.1,0.38147885]
[1735896650195,1.0121602,3444.2,3443.9,1.0121602]
[1735896650397,0.29063,3444.1,3444.0,4.92591532]
[1735896650593,0.29063,3444.1,3444.0,4.92591585]
[1735896652296,2.57066429,3444.1,3444.0,4.92591585]
[1735896653598,0.29063,3444.1,3444.0,4.92591585]
[1735896653804,0.29063,3444.1,3444.0,4.92591471]
[1735896654104,0.29063,3444.1,3444.0,4.63528471]
[1735896655206,2.57066429,3444.1,3444.0,0.09085749]
[1735896655706,2.57066429,3444.1,3444.0,0.38148749]
[1735896656303,0.29063,3444.1,3444.0,0.38148749]
[1735896656808,0.29063,3444.1,3444.0,0.38148648]
[1735896657306,0.29063,3444.1,3444.0,0.29063]
[1735896657509,0.29063,3444.1,3444.0,0.09085642]
[1735896657710,0.29063,3444.1,3444.0,0.38148642]
[1735896659312,0.29063,3444.1,3444.0,0.38148558]
[1735896660105,0.29063,3444.1,3444.0,4.9259128]
[1735896660304,0.29062,3444.2,3444.1,0.29061]
[1735896660504,0.29062,3444.2,3444.1,1.39362578]
[1735896661717,0.29062,3444.2,3444.1,5.938053]
[1735896661916,0.29062,3444.2,3444.1,5.93805106]
[1735896663008,0.29062,3444.2,3444.1,1.39362384]
[1735896663203,2.28003429,3444.3,3444.2,0.29061]
[1735896663204,2.57064429,3444.3,3444.2,0.29061]
[1735896663407,2.57064429,3444.3,3444.2,0.38146364]
[1735896664811,2.57064429,3444.3,3444.2,0.29061]
[1735896665018,2.28003429,3444.3,3444.2,0.38146224]
[1735896665317,2.57064429,3444.3,3444.2,0.38146224]
[1735896665517,2.28003429,3444.3,3444.2,0.38146173]
[1735896666119,5.48783429,3444.4,3444.2,0.43738101]
[1735896666320,5.48783429,3444.4,3444.3,1.74015121]
[1735896666914,2.28003429,3444.4,3444.3,1.74015121]
[1735896667331,0.29058,3444.6,3444.3,12.296414]
[1735896667518,0.29058,3444.6,3444.5,0.29059]
[1735896667717,0.29058,3444.6,3444.5,0.38143074]
[1735896667919,0.29058,3444.6,3444.5,0.29059]
[1735896668112,0.29058,3444.6,3444.5,0.3814285]
[1735896668316,0.29058,3444.6,3444.5,1.3935887]
[1735896669919,0.29058,3444.6,3444.5,5.93589283]
[1735896670917,0.29058,3444.6,3444.5,5.84505433]
[1735896671117,0.29058,3444.6,3444.5,5.93589713]
[1735896671323,0.29058,3444.6,3444.5,1.393593]
[1735896671521,0.29058,3444.6,3444.5,0.3814328]
[1735896673816,0.29058,3444.6,3444.5,0.0908428]
[1735896674119,0.2906,3444.4,3444.3,4.54230413]
[1735896674325,4.5105602,3444.4,3444.3,4.63315674]
[1735896675228,6.79059449,3444.4,3444.3,0.09085261]
[1735896676631,6.79059449,3444.4,3444.3,0.09085439]
[1735896677128,6.79059449,3444.4,3444.3,0.09085429]
[1735896679432,6.79059449,3444.4,3444.3,0.38146429]
[1735896680627,6.79059449,3444.4,3444.3,0.09085429]
[1735896681031,4.5105602,3444.4,3444.3,0.09085429]
[1735896681430,4.5105602,3444.4,3444.3,0.38146429]
[1735896682530,6.79059449,3444.4,3444.3,0.38146429]
[1735896683030,6.79059449,3444.4,3444.3,0.29061]
[1735896683335,6.79059449,3444.4,3444.3,0.3814596]
[1735896683634,6.79059449,3444.4,3444.3,0.29061]
[1735896683834,6.79059449,3444.4,3444.3,0.38146042]
[1735896684134,4.5105602,3444.4,3444.3,0.38146042]
[1735896684833,4.5105602,3444.4,3444.3,0.09085042]
[1735896685333,4.5105602,3444.4,3444.3,0.38146042]
[1735896685536,6.79059449,3444.4,3444.3,0.38146042]
[1735896685827,6.79059449,3444.4,3444.3,0.38146144]
[1735896686235,6.79059449,3444.4,3444.3,0.38146211]
[1735896687922,4.5105602,3444.4,3444.3,0.38146211]
[1735896688635,4.5105602,3444.4,3444.3,0.09085211]
[1735896689122,6.79548379,3444.4,3444.3,0.38146211]
[1735896689326,6.79548379,3444.4,3444.3,0.38146175]
[1735896690537,4.5105602,3444.4,3444.3,0.09085175]
[1735896691634,7.93794559,3444.4,3444.3,0.09085175]
[1735896692132,7.64734559,3444.4,3444.2,0.29061]
[1735896692335,0.29061,3444.3,3444.2,0.29061]
[1735896692538,0.29061,3444.3,3444.2,0.38146407]
[1735896692737,0.29061,3444.3,3444.2,0.38146402]
[1735896693139,2.57651395,3444.3,3444.2,0.38146402]
[1735896694542,2.57651395,3444.3,3444.2,4.92741653]
[1735896694745,2.57651395,3444.3,3444.2,4.9274122]
[1735896695341,2.57651395,3444.3,3444.2,4.92741216]
[1735896697139,2.57651395,3444.3,3444.2,4.92741405]
[1735896698342,2.57651395,3444.3,3444.2,4.92741546]
[1735896699645,0.29061,3444.3,3444.2,4.92741546]
[1735896701444,0.29061,3444.3,3444.2,4.9274169]
[1735896701939,0.29061,3444.3,3444.2,4.83656251]
[1735896702140,0.29061,3444.3,3444.2,4.92741855]
[1735896702546,3.71799539,3444.3,3444.2,4.92741855]
[1735896703443,3.71799539,3444.3,3444.2,5.27486969]
[1735896703650,3.71799539,3444.3,3444.2,4.63680855]
[1735896703851,3.71799539,3444.3,3444.2,4.63680841]
[1735896704148,3.71799539,3444.3,3444.2,4.92741841]
[1735896704357,3.71799539,3444.3,3444.2,4.54595251]
[1735896704546,3.71799539,3444.3,3444.2,4.92741809]
[1735896704851,3.71799539,3444.3,3444.2,4.63680809]
[1735896705549,44.51799539,3444.3,3444.2,4.63680809]
[1735896706046,44.95410471,3444.3,3444.2,4.63680809]
[1735896707339,46.09656651,3444.3,3444.2,0.09085989]
[1735896708149,45.80595651,3444.3,3444.2,0.0908604]
[1735896708349,46.09656651,3444.3,3444.2,0.0908604]
[1735896708544,0.29062,3444.1,3444.0,0.29063]
[1735896708746,0.29062,3444.1,3444.0,0.3814902]
[1735896708747,4.5105802,3444.1,3444.0,0.3814902]
[1735896709454,45.3105802,3444.1,3444.0,0.3814902]
[1735896709650,48.74008408,3444.1,3444.0,0.3814902]
[1735896710254,48.74008408,3444.1,3444.0,0.0908602]
[1735896710455,48.74008408,3444.1,3444.0,0.38149018]
[1735896710952,48.74008408,3444.1,3444.0,0.38148909]
[1735896711148,48.74008408,3444.1,3444.0,0.09085909]
[1735896711348,48.74008408,3444.1,3444.0,0.38148909]
[1735896712156,48.74008408,3444.1,3444.0,0.09085909]
[1735896713053,49.17623113,3444.1,3444.0,0.09085909]
[1735896713553,49.17623113,3444.1,3444.0,0.38149196]
[1735896714354,49.17623113,3444.1,3444.0,0.09086196]
[1735896714950,48.16407093,3444.1,3444.0,0.09086196]
[1735896715152,49.17623113,3444.1,3444.0,0.09086196]
[1735896715360,47.87345093,3444.1,3444.0,1.39365216]
[1735896715860,44.73456705,3444.1,3444.0,0.09086196]
[1735896716351,44.44394705,3444.1,3443.8,4.54595251]
[1735896716550,1.3028002,3444.0,3443.9,0.38149263]
[1735896716753,1.3028002,3444.0,3443.9,0.09086263]
[1735896716954,1.3028002,3444.0,3443.9,0.38147263]
[1735896717360,1.3028002,3444.0,3443.9,0.09086263]
[1735896717361,4.73192959,3444.0,3443.9,0.09086263]
[1735896718959,4.73192959,3444.0,3443.9,0.38147263]
[1735896719559,4.73192959,3444.0,3443.9,0.38146737]
[1735896720061,4.73192959,3444.0,3443.9,0.38146727]
[1735896721053,4.73192959,3444.0,3443.9,0.09085727]
[1735896721261,4.73192959,3444.0,3443.9,0.38146727]
[1735896721959,5.16806503,3444.0,3443.9,0.38146727]
[1735896722162,5.16806503,3444.0,3443.9,0.38146669]
[1735896723065,4.15590483,3444.0,3443.9,0.38146669]
[1735896723666,2.57667787,3444.0,3443.9,4.9274192]
[1735896723865,2.28603787,3444.0,3443.9,4.9274192]
[1735896724161,2.28603787,3444.0,3443.9,5.27461552]
[1735896724861,0.40003787,3444.0,3443.9,6.28677572]
[1735896725061,3.42912939,3444.2,3443.9,5.94502702]
[1735896725266,3.42912939,3444.2,3444.1,1.3027502]
[1735896725563,3.42912939,3444.2,3444.1,2.85480321]
[1735896726665,40.8,3444.4,3444.3,0.29058]
[1735896726866,40.8,3444.4,3444.3,1.74079321]